[Event "*** Titled Tuesday Blitz"]
[Site "Chess.com"]
[Date "2020.04.28"]
[Round "1"]
[White "eightbyeightchess"]
[Black "ZCorrales"]
[Result "1-0"]
[WhiteElo "2502"]
[BlackElo "2070"]
[TimeControl "180+1"]
[EndTime "10:06:16 PDT"]
[Termination "eightbyeightchess won by checkmate"]

1. e4 {[%clk 0:02:59.8]} 1... c5 {[%clk 0:02:59]} 2. Nf3 {[%clk 0:02:58.8]} 2...
Nc6 {[%clk 0:02:57.9]} 3. d4 {[%clk 0:02:54.8]} 3... cxd4 {[%clk 0:02:57.5]} 4.
c3 {[%clk 0:02:55.5]} 4... d3 {[%clk 0:02:52.7]} 5. Bxd3 {[%clk 0:02:54.3]} 5...
g6 {[%clk 0:02:52.5]} 6. O-O {[%clk 0:02:53.7]} 6... Bg7 {[%clk 0:02:52.4]} 7.
c4 {[%clk 0:02:49.9]} 7... d6 {[%clk 0:02:52.2]} 8. h3 {[%clk 0:02:49.7]} 8...
Nf6 {[%clk 0:02:51.3]} 9. Nc3 {[%clk 0:02:49.9]} 9... O-O {[%clk 0:02:50]} 10.
Bg5 {[%clk 0:02:49.5]} 10... Be6 {[%clk 0:02:47.6]} 11. Qd2 {[%clk 0:02:47.4]}
11... Rc8 {[%clk 0:02:46.3]} 12. Nd5 {[%clk 0:02:42.8]} 12... Bxd5 {[%clk
0:02:41.8]} 13. exd5 {[%clk 0:02:38.2]} 13... Ne5 {[%clk 0:02:39.6]} 14. Nxe5
{[%clk 0:02:33.7]} 14... dxe5 {[%clk 0:02:39.4]} 15. Rfe1 {[%clk 0:02:29.2]}
15... e4 {[%clk 0:02:36]} 16. Bxe4 {[%clk 0:02:24.6]} 16... Rxc4 {[%clk
0:02:34.3]} 17. Bf3 {[%clk 0:02:06.3]} 17... Qd7 {[%clk 0:02:17.7]} 18. Rad1
{[%clk 0:01:44.6]} 18... Rd8 {[%clk 0:02:11]} 19. Qe2 {[%clk 0:01:40.1]} 19...
Rb4 {[%clk 0:01:45.4]} 20. b3 {[%clk 0:01:26.9]} 20... h6 {[%clk 0:01:43]} 21.
Bc1 {[%clk 0:01:19.9]} 21... Rb6 {[%clk 0:01:18.3]} 22. Qxe7 {[%clk 0:01:15.2]}
22... Qxe7 {[%clk 0:01:17.6]} 23. Rxe7 {[%clk 0:01:16.1]} 23... Nxd5 {[%clk
0:01:09.8]} 24. Rxd5 {[%clk 0:01:08.5]} 24... Rxd5 {[%clk 0:01:03.8]} 25. Bxd5
{[%clk 0:01:09.4]} 25... Rd6 {[%clk 0:00:57.8]} 26. Bf3 {[%clk 0:01:05]} 26...
Ra6 {[%clk 0:00:54.3]} 27. Be3 {[%clk 0:00:56.5]} 27... Rxa2 {[%clk 0:00:54.1]}
28. g3 {[%clk 0:00:55.5]} 28... Rb2 {[%clk 0:00:53.3]} 29. Rxb7 {[%clk
0:00:54.2]} 29... a5 {[%clk 0:00:53]} 30. Bd5 {[%clk 0:00:53.4]} 30... Rb1+
{[%clk 0:00:50.1]} 31. Kg2 {[%clk 0:00:53.1]} 31... h5 {[%clk 0:00:49.5]} 32.
Bxf7+ {[%clk 0:00:51.3]} 32... Kh7 {[%clk 0:00:50]} 33. Bc4 {[%clk 0:00:50.4]}
33... a4 {[%clk 0:00:48.5]} 34. Bd4 {[%clk 0:00:49.8]} 34... a3 {[%clk
0:00:43.1]} 35. Rxg7+ {[%clk 0:00:46.2]} 35... Kh6 {[%clk 0:00:42.4]} 36. Ra7
{[%clk 0:00:44.5]} 36... Rb2 {[%clk 0:00:37.2]} 37. Bxb2 {[%clk 0:00:43.2]}
37... axb2 {[%clk 0:00:37]} 38. Bd3 {[%clk 0:00:43.2]} 38... g5 {[%clk
0:00:35.9]} 39. Rh7# {[%clk 0:00:42.1]} 1-0

[Event "*** Titled Tuesday Blitz"]
[Site "Chess.com"]
[Date "2020.04.28"]
[Round "1"]
[White "Vaathi_Coming"]
[Black "Usurpov"]
[Result "1-0"]
[WhiteElo "2865"]
[BlackElo "2447"]
[TimeControl "180+1"]
[EndTime "10:06:17 PDT"]
[Termination "Vaathi_Coming won by resignation"]

1. d4 {[%clk 0:03:00.9]} 1... Nf6 {[%clk 0:02:58.3]} 2. c4 {[%clk 0:03:00.7]}
2... g6 {[%clk 0:02:57]} 3. Nc3 {[%clk 0:03:00.4]} 3... d5 {[%clk 0:02:53.7]} 4.
cxd5 {[%clk 0:03:01.3]} 4... Nxd5 {[%clk 0:02:52.2]} 5. e4 {[%clk 0:03:02.2]}
5... Nxc3 {[%clk 0:02:51]} 6. bxc3 {[%clk 0:03:03.1]} 6... Bg7 {[%clk
0:02:50.9]} 7. Nf3 {[%clk 0:03:01.9]} 7... c5 {[%clk 0:02:50.3]} 8. Be3 {[%clk
0:03:01.6]} 8... Qa5 {[%clk 0:02:41.5]} 9. Qd2 {[%clk 0:03:01.5]} 9... Nc6
{[%clk 0:02:35.3]} 10. Rc1 {[%clk 0:02:55.5]} 10... cxd4 {[%clk 0:02:29.3]} 11.
cxd4 {[%clk 0:02:56.4]} 11... Qxd2+ {[%clk 0:02:26.7]} 12. Kxd2 {[%clk
0:02:57.3]} 12... O-O {[%clk 0:02:24.8]} 13. d5 {[%clk 0:02:43.7]} 13... Rd8
{[%clk 0:02:05.5]} 14. Kc2 {[%clk 0:02:38.9]} 14... Nb4+ {[%clk 0:01:37.3]} 15.
Kb3 {[%clk 0:02:37.1]} 15... Na6 {[%clk 0:01:29.9]} 16. Bb5 {[%clk 0:02:31]}
16... e6 {[%clk 0:01:27.7]} 17. Rhd1 {[%clk 0:02:02.4]} 17... exd5 {[%clk
0:01:16.6]} 18. exd5 {[%clk 0:02:03.3]} 18... Bd7 {[%clk 0:01:16.5]} 19. a4
{[%clk 0:01:54.9]} 19... Bf6 {[%clk 0:00:51.1]} 20. Bd4 {[%clk 0:01:38.6]} 20...
Kg7 {[%clk 0:00:49.2]} 21. Bxf6+ {[%clk 0:01:23]} 21... Kxf6 {[%clk 0:00:48.9]}
22. Rd4 {[%clk 0:01:23.9]} 22... Bxb5 {[%clk 0:00:43]} 23. axb5 {[%clk
0:01:24.8]} 23... Nb8 {[%clk 0:00:43]} 24. Rf4+ {[%clk 0:01:15]} 24... Kg7
{[%clk 0:00:37.5]} 25. Ne5 {[%clk 0:01:14.8]} 25... Rxd5 {[%clk 0:00:16.9]} 26.
Rxf7+ {[%clk 0:01:14.1]} 26... Kh6 {[%clk 0:00:17.6]} 27. f4 {[%clk 0:01:12.1]}
27... Rxb5+ {[%clk 0:00:17.7]} 28. Ka4 {[%clk 0:01:11]} 28... Rb6 {[%clk
0:00:17.2]} 29. Rc3 {[%clk 0:01:03]} 29... Ra6+ {[%clk 0:00:11.4]} 30. Kb3
{[%clk 0:01:02.3]} 30... Rb6+ {[%clk 0:00:09.7]} 31. Kc2 {[%clk 0:01:02.5]} 1-0

[Event "*** Titled Tuesday Blitz"]
[Site "Chess.com"]
[Date "2020.04.28"]
[Round "1"]
[White "12teen"]
[Black "Orest_Vovk"]
[Result "1-0"]
[WhiteElo "2792"]
[BlackElo "2416"]
[TimeControl "180+1"]
[EndTime "10:06:19 PDT"]
[Termination "12teen won by resignation"]

1. e4 {[%clk 0:03:00.1]} 1... Nc6 {[%clk 0:02:59.5]} 2. Nc3 {[%clk 0:02:59.6]}
2... Nf6 {[%clk 0:02:56.1]} 3. g3 {[%clk 0:02:59.4]} 3... e6 {[%clk 0:02:54]} 4.
Bg2 {[%clk 0:02:58.5]} 4... Bb4 {[%clk 0:02:53.9]} 5. f4 {[%clk 0:02:57.5]} 5...
d5 {[%clk 0:02:49.1]} 6. e5 {[%clk 0:02:57.8]} 6... Nd7 {[%clk 0:02:30.6]} 7. d4
{[%clk 0:02:54.3]} 7... Ne7 {[%clk 0:02:19.1]} 8. Nf3 {[%clk 0:02:48.8]} 8...
Bxc3+ {[%clk 0:02:13.7]} 9. bxc3 {[%clk 0:02:48.5]} 9... c5 {[%clk 0:02:13.8]}
10. O-O {[%clk 0:02:47.8]} 10... h5 {[%clk 0:01:58]} 11. h3 {[%clk 0:02:47.1]}
11... Nf5 {[%clk 0:01:51.8]} 12. Qe1 {[%clk 0:02:46.4]} 12... Qb6 {[%clk
0:01:42.3]} 13. Be3 {[%clk 0:02:45.9]} 13... h4 {[%clk 0:01:29.2]} 14. g4 {[%clk
0:02:44.8]} 14... Ng3 {[%clk 0:01:27.7]} 15. Rf2 {[%clk 0:02:44.3]} 15... Ne4
{[%clk 0:01:24.7]} 16. Re2 {[%clk 0:02:44.6]} 16... Ng3 {[%clk 0:00:54.8]} 17.
Rd2 {[%clk 0:02:43.1]} 17... c4 {[%clk 0:00:52.2]} 18. Nxh4 {[%clk 0:02:40]}
18... Rxh4 {[%clk 0:00:46.5]} 19. Qxg3 {[%clk 0:02:39.8]} 19... Rh8 {[%clk
0:00:45.6]} 20. Qe1 {[%clk 0:02:27.8]} 20... Qa5 {[%clk 0:00:43.9]} 21. Rf2
{[%clk 0:02:27.2]} 21... Nb6 {[%clk 0:00:43.2]} 22. f5 {[%clk 0:02:22.1]} 22...
Na4 {[%clk 0:00:43]} 23. Bd2 {[%clk 0:02:22.4]} 23... Bd7 {[%clk 0:00:43.3]} 24.
Qe3 {[%clk 0:02:20.4]} 24... O-O-O {[%clk 0:00:42.5]} 25. Qg5 {[%clk 0:02:16.4]}
25... Rhg8 {[%clk 0:00:41.7]} 26. Qe7 {[%clk 0:02:14]} 26... Rdf8 {[%clk
0:00:32.4]} 27. Raf1 {[%clk 0:02:11.2]} 27... Qd8 {[%clk 0:00:30.8]} 28. Qa3
{[%clk 0:02:04.2]} 28... b5 {[%clk 0:00:21.1]} 29. Qd6 {[%clk 0:01:55.2]} 29...
Qc7 {[%clk 0:00:19.2]} 30. Qe7 {[%clk 0:01:54.1]} 30... Qd8 {[%clk 0:00:19]} 31.
Bg5 {[%clk 0:01:50.7]} 31... Qxe7 {[%clk 0:00:18.6]} 32. Bxe7 {[%clk 0:01:51.6]}
32... Re8 {[%clk 0:00:19.3]} 33. Bb4 {[%clk 0:01:50.6]} 33... exf5 {[%clk
0:00:17.8]} 34. gxf5 {[%clk 0:01:50.5]} 34... g6 {[%clk 0:00:18]} 35. e6 {[%clk
0:01:44.9]} 35... fxe6 {[%clk 0:00:16.3]} 36. f6 {[%clk 0:01:45.5]} 36... Ref8
{[%clk 0:00:14]} 37. f7 {[%clk 0:01:44.8]} 37... Rh8 {[%clk 0:00:13.7]} 38. Rf6
{[%clk 0:01:42.4]} 38... g5 {[%clk 0:00:11.7]} 39. Rg6 {[%clk 0:01:40]} 39...
Kd8 {[%clk 0:00:11.7]} 40. Rxg5 {[%clk 0:01:34.7]} 40... Nb6 {[%clk 0:00:10.4]}
41. h4 {[%clk 0:01:33.9]} 41... Nc8 {[%clk 0:00:10.2]} 42. Bxf8 {[%clk
0:01:32.9]} 42... Rxf8 {[%clk 0:00:10]} 43. h5 {[%clk 0:01:33]} 43... Ne7 {[%clk
0:00:05.9]} 44. h6 {[%clk 0:01:32.7]} 44... Nf5 {[%clk 0:00:06.1]} 45. h7 {[%clk
0:01:30.2]} 45... Ke7 {[%clk 0:00:06.5]} 46. Rg8 {[%clk 0:01:28.9]} 46... Kxf7
{[%clk 0:00:06.9]} 47. Rxf8+ {[%clk 0:01:29]} 1-0

[Event "*** Titled Tuesday Blitz"]
[Site "Chess.com"]
[Date "2020.04.28"]
[Round "1"]
[White "Koalaskakistis"]
[Black "EnergeticHay"]
[Result "0-1"]
[WhiteElo "2522"]
[BlackElo "2211"]
[TimeControl "180+1"]
[EndTime "10:06:19 PDT"]
[Termination "EnergeticHay won by resignation"]

1. e4 {[%clk 0:02:50]} 1... c5 {[%clk 0:03:00]} 2. Nf3 {[%clk 0:02:48]} 2... d6
{[%clk 0:03:00.3]} 3. Bb5+ {[%clk 0:02:48]} 3... Nd7 {[%clk 0:03:00]} 4. a4
{[%clk 0:02:45]} 4... Nf6 {[%clk 0:02:59.1]} 5. Nc3 {[%clk 0:02:44.1]} 5... a6
{[%clk 0:02:59]} 6. Be2 {[%clk 0:02:44]} 6... e6 {[%clk 0:02:55.6]} 7. O-O
{[%clk 0:02:41.3]} 7... Be7 {[%clk 0:02:56]} 8. d4 {[%clk 0:02:36.4]} 8... cxd4
{[%clk 0:02:56.9]} 9. Qxd4 {[%clk 0:02:35.8]} 9... Qc7 {[%clk 0:02:55]} 10. Rd1
{[%clk 0:02:29.6]} 10... b6 {[%clk 0:02:53.3]} 11. Nd2 {[%clk 0:02:28.1]} 11...
Bb7 {[%clk 0:02:53.1]} 12. Nc4 {[%clk 0:02:21.6]} 12... d5 {[%clk 0:02:36.9]}
13. exd5 {[%clk 0:02:17.6]} 13... Nxd5 {[%clk 0:02:36]} 14. Nxd5 {[%clk
0:02:06.9]} 14... Bxd5 {[%clk 0:02:36.9]} 15. Ne3 {[%clk 0:02:07]} 15... Nf6
{[%clk 0:02:22.6]} 16. Nxd5 {[%clk 0:02:00.3]} 16... exd5 {[%clk 0:02:22.3]} 17.
c3 {[%clk 0:01:55.3]} 17... O-O {[%clk 0:02:21]} 18. Bf3 {[%clk 0:01:50.8]}
18... Bc5 {[%clk 0:02:19.9]} 19. Qh4 {[%clk 0:01:46.9]} 19... Rae8 {[%clk
0:02:08.7]} 20. Bf4 {[%clk 0:01:33.5]} 20... Qe7 {[%clk 0:01:57.8]} 21. Bg5
{[%clk 0:01:21.6]} 21... Rd8 {[%clk 0:01:39.1]} 22. Bxf6 {[%clk 0:01:18.8]}
22... Qxf6 {[%clk 0:01:39]} 23. Qxf6 {[%clk 0:01:18.7]} 23... gxf6 {[%clk
0:01:39.9]} 24. Bxd5 {[%clk 0:01:13.8]} 24... Rfe8 {[%clk 0:01:40.3]} 25. Rd2
{[%clk 0:01:10.7]} 25... Kf8 {[%clk 0:01:33.7]} 26. Rad1 {[%clk 0:01:09.4]}
26... Re5 {[%clk 0:01:31.5]} 27. g3 {[%clk 0:00:57.7]} 27... a5 {[%clk
0:01:30.4]} 28. h4 {[%clk 0:00:52.4]} 28... Rf5 {[%clk 0:01:25.2]} 29. Kg2
{[%clk 0:00:40.6]} 29... Bxf2 {[%clk 0:00:30.3]} 30. Rxf2 {[%clk 0:00:39.7]}
30... Rfxd5 {[%clk 0:00:29.3]} 0-1

[Event "*** Titled Tuesday Blitz"]
[Site "Chess.com"]
[Date "2020.04.28"]
[Round "1"]
[White "saikrishnaReturns"]
[Black "Caterpiller35"]
[Result "1-0"]
[WhiteElo "2631"]
[BlackElo "2304"]
[TimeControl "180+1"]
[EndTime "10:06:20 PDT"]
[Termination "saikrishnaReturns won by resignation"]

1. e4 {[%clk 0:02:58.4]} 1... c5 {[%clk 0:02:59.7]} 2. Nf3 {[%clk 0:02:57.9]}
2... Nc6 {[%clk 0:02:59.8]} 3. Nc3 {[%clk 0:02:58.4]} 3... e5 {[%clk 0:02:58.3]}
4. Bb5 {[%clk 0:02:58.4]} 4... d6 {[%clk 0:02:54.6]} 5. O-O {[%clk 0:02:58.3]}
5... Ne7 {[%clk 0:02:53.7]} 6. Nd5 {[%clk 0:02:58]} 6... Bd7 {[%clk 0:02:49.6]}
7. c3 {[%clk 0:02:54.3]} 7... a6 {[%clk 0:02:38]} 8. Bxc6 {[%clk 0:02:52.7]}
8... bxc6 {[%clk 0:02:36.2]} 9. Nxe7 {[%clk 0:02:52.7]} 9... Bxe7 {[%clk
0:02:36]} 10. d4 {[%clk 0:02:53.6]} 10... cxd4 {[%clk 0:02:36]} 11. cxd4 {[%clk
0:02:54.5]} 11... exd4 {[%clk 0:02:35.2]} 12. Nxd4 {[%clk 0:02:55.4]} 12... O-O
{[%clk 0:02:34.8]} 13. Bd2 {[%clk 0:02:51.7]} 13... Bf6 {[%clk 0:02:33.2]} 14.
Bc3 {[%clk 0:02:51.9]} 14... Re8 {[%clk 0:02:33.2]} 15. Re1 {[%clk 0:02:51.5]}
15... c5 {[%clk 0:02:26.5]} 16. Nc2 {[%clk 0:02:48.4]} 16... Bxc3 {[%clk
0:02:22.6]} 17. bxc3 {[%clk 0:02:49.3]} 17... Bc6 {[%clk 0:02:22.2]} 18. f3
{[%clk 0:02:48.6]} 18... d5 {[%clk 0:02:18.7]} 19. exd5 {[%clk 0:02:48.1]} 19...
Qxd5 {[%clk 0:02:18.5]} 20. Ne3 {[%clk 0:02:44.7]} 20... Qg5 {[%clk 0:02:10.3]}
21. Kf2 {[%clk 0:02:41.9]} 21... Rad8 {[%clk 0:02:06.5]} 22. Qc2 {[%clk
0:02:23.1]} 22... Re6 {[%clk 0:01:43.3]} 23. Rad1 {[%clk 0:02:18.7]} 23... Rde8
{[%clk 0:01:30.1]} 24. Nf5 {[%clk 0:02:18.1]} 24... g6 {[%clk 0:01:02.8]} 25.
Ng3 {[%clk 0:02:09.9]} 25... h5 {[%clk 0:00:55.3]} 26. Rxe6 {[%clk 0:02:01.9]}
26... Rxe6 {[%clk 0:00:54.9]} 27. Qd2 {[%clk 0:02:02.6]} 27... Qxd2+ {[%clk
0:00:43.5]} 28. Rxd2 {[%clk 0:02:03.5]} 28... h4 {[%clk 0:00:43.9]} 29. Ne2
{[%clk 0:02:02.9]} 29... h3 {[%clk 0:00:42.1]} 30. Nf4 {[%clk 0:02:03]} 30...
Re8 {[%clk 0:00:30]} 31. Nxh3 {[%clk 0:02:02.9]} 31... Rb8 {[%clk 0:00:30]} 32.
Nf4 {[%clk 0:01:59.4]} 32... Kg7 {[%clk 0:00:28.6]} 33. Nd3 {[%clk 0:01:59.5]}
33... Rb5 {[%clk 0:00:27.2]} 34. Ne5 {[%clk 0:01:57.7]} 34... Be8 {[%clk
0:00:26.1]} 35. Rd8 {[%clk 0:01:56.8]} 35... Kf8 {[%clk 0:00:26.2]} 36. Nc4
{[%clk 0:01:49.6]} 36... Ke7 {[%clk 0:00:24.5]} 37. Rxe8+ {[%clk 0:01:49.2]}
37... Kxe8 {[%clk 0:00:25.4]} 38. Nd6+ {[%clk 0:01:49.7]} 38... Kd7 {[%clk
0:00:25.1]} 39. Nxb5 {[%clk 0:01:50]} 39... axb5 {[%clk 0:00:26]} 40. h4 {[%clk
0:01:49.9]} 40... Kc6 {[%clk 0:00:26.9]} 41. g4 {[%clk 0:01:50]} 41... Kd5
{[%clk 0:00:27.8]} 42. Ke3 {[%clk 0:01:49.7]} 42... Ke5 {[%clk 0:00:12.9]} 43.
f4+ {[%clk 0:01:42.5]} 43... Kd5 {[%clk 0:00:12.9]} 44. h5 {[%clk 0:01:40.6]}
44... gxh5 {[%clk 0:00:13.8]} 45. gxh5 {[%clk 0:01:41.2]} 45... Ke6 {[%clk
0:00:14.2]} 46. h6 {[%clk 0:01:41.7]} 46... Kf6 {[%clk 0:00:14.4]} 47. f5 {[%clk
0:01:42.2]} 1-0

[Event "*** Titled Tuesday Blitz"]
[Site "Chess.com"]
[Date "2020.04.28"]
[Round "1"]
[White "ParvizGasimov"]
[Black "walkingcreep"]
[Result "1-0"]
[WhiteElo "2362"]
[BlackElo "2640"]
[TimeControl "180+1"]
[EndTime "10:06:24 PDT"]
[Termination "ParvizGasimov won by resignation"]

1. e4 {[%clk 0:03:00.9]} 1... d6 {[%clk 0:02:58.5]} 2. d4 {[%clk 0:03:00.2]}
2... Nf6 {[%clk 0:02:58]} 3. Nc3 {[%clk 0:03:00.7]} 3... Nbd7 {[%clk 0:02:58.1]}
4. Nf3 {[%clk 0:03:00.3]} 4... e5 {[%clk 0:02:58.1]} 5. Bc4 {[%clk 0:03:00.2]}
5... Be7 {[%clk 0:02:58.5]} 6. O-O {[%clk 0:03:00.1]} 6... O-O {[%clk
0:02:57.2]} 7. Re1 {[%clk 0:02:59.7]} 7... c6 {[%clk 0:02:57.7]} 8. a4 {[%clk
0:02:59.9]} 8... exd4 {[%clk 0:02:57.6]} 9. Nxd4 {[%clk 0:02:58.8]} 9... Ne5
{[%clk 0:02:58.5]} 10. Bf1 {[%clk 0:02:47.5]} 10... Re8 {[%clk 0:02:58.2]} 11.
h3 {[%clk 0:02:45]} 11... Ng6 {[%clk 0:02:58.2]} 12. f4 {[%clk 0:02:33.3]} 12...
Qa5 {[%clk 0:02:54.4]} 13. Be3 {[%clk 0:02:27.4]} 13... Bd8 {[%clk 0:02:47.7]}
14. Qf3 {[%clk 0:02:26.2]} 14... Bd7 {[%clk 0:02:37.3]} 15. Rad1 {[%clk
0:02:19.3]} 15... Bb6 {[%clk 0:02:17.7]} 16. g4 {[%clk 0:02:15.7]} 16... h6
{[%clk 0:02:01]} 17. Nf5 {[%clk 0:01:37.1]} 17... Bxf5 {[%clk 0:01:20.6]} 18.
gxf5 {[%clk 0:01:20.6]} 18... Nh4 {[%clk 0:01:11.8]} 19. Qf2 {[%clk 0:01:11.6]}
19... Nxe4 {[%clk 0:00:52.3]} 20. Nxe4 {[%clk 0:01:06]} 20... Rxe4 {[%clk
0:00:50.7]} 21. Bxb6 {[%clk 0:00:58.3]} 21... Qxb6 {[%clk 0:00:50]} 22. Qxb6
{[%clk 0:00:52.9]} 22... axb6 {[%clk 0:00:41.4]} 23. Rxe4 {[%clk 0:00:51.4]}
23... Nxf5 {[%clk 0:00:41.6]} 24. Rde1 {[%clk 0:00:49.9]} 24... Kf8 {[%clk
0:00:40]} 25. Bd3 {[%clk 0:00:49.2]} 25... d5 {[%clk 0:00:36.6]} 26. Re8+ {[%clk
0:00:45.1]} 26... Rxe8 {[%clk 0:00:36.1]} 27. Rxe8+ {[%clk 0:00:45.7]} 27...
Kxe8 {[%clk 0:00:36.5]} 28. Bxf5 {[%clk 0:00:46.6]} 28... Ke7 {[%clk 0:00:37]}
29. Kf2 {[%clk 0:00:47]} 29... Kd6 {[%clk 0:00:37.1]} 30. Ke3 {[%clk 0:00:44.7]}
30... Kc5 {[%clk 0:00:37.5]} 31. Bc8 {[%clk 0:00:42.2]} 31... Kb4 {[%clk
0:00:33]} 32. Bxb7 {[%clk 0:00:41.7]} 32... c5 {[%clk 0:00:33.6]} 1-0

[Event "*** Titled Tuesday Blitz"]
[Site "Chess.com"]
[Date "2020.04.28"]
[Round "1"]
[White "Mourinho_Jose"]
[Black "momojunkai"]
[Result "1-0"]
[WhiteElo "2568"]
[BlackElo "2209"]
[TimeControl "180+1"]
[EndTime "10:06:24 PDT"]
[Termination "Mourinho_Jose won by checkmate"]

1. Nf3 {[%clk 0:02:58.3]} 1... b6 {[%clk 0:02:40.1]} 2. g3 {[%clk 0:02:58.3]}
2... Bb7 {[%clk 0:02:40.2]} 3. Bg2 {[%clk 0:02:59.2]} 3... e6 {[%clk 0:02:40.2]}
4. d4 {[%clk 0:02:59.3]} 4... Nf6 {[%clk 0:02:37.8]} 5. O-O {[%clk 0:02:59.8]}
5... Be7 {[%clk 0:02:36.5]} 6. Re1 {[%clk 0:03:00.2]} 6... O-O {[%clk 0:02:33]}
7. c4 {[%clk 0:03:00.4]} 7... d6 {[%clk 0:02:31.7]} 8. Nc3 {[%clk 0:03:00]} 8...
Nbd7 {[%clk 0:02:32.2]} 9. e4 {[%clk 0:02:59.6]} 9... c5 {[%clk 0:02:29]} 10. d5
{[%clk 0:02:58.5]} 10... e5 {[%clk 0:02:28.2]} 11. h3 {[%clk 0:02:56.3]} 11...
Nh5 {[%clk 0:02:24.2]} 12. Be3 {[%clk 0:02:55.4]} 12... g6 {[%clk 0:02:23.8]}
13. Bh6 {[%clk 0:02:49.8]} 13... Ng7 {[%clk 0:02:23.9]} 14. Qd2 {[%clk
0:02:49.7]} 14... f5 {[%clk 0:02:19.1]} 15. exf5 {[%clk 0:02:50]} 15... Nxf5
{[%clk 0:02:16.3]} 16. Bxf8 {[%clk 0:02:48.4]} 16... Bxf8 {[%clk 0:02:17.2]} 17.
Ne4 {[%clk 0:02:46.6]} 17... Bh6 {[%clk 0:02:15.5]} 18. Qd3 {[%clk 0:02:46]}
18... Nf8 {[%clk 0:02:12.4]} 19. h4 {[%clk 0:02:43.8]} 19... Qe7 {[%clk
0:02:08.1]} 20. a3 {[%clk 0:02:41.5]} 20... Nd4 {[%clk 0:02:06.5]} 21. Nxd4
{[%clk 0:02:40.3]} 21... cxd4 {[%clk 0:02:07.4]} 22. b3 {[%clk 0:02:17.2]} 22...
Rc8 {[%clk 0:02:05.7]} 23. a4 {[%clk 0:02:17.2]} 23... Rd8 {[%clk 0:01:50.8]}
24. Qf3 {[%clk 0:02:14]} 24... Bc8 {[%clk 0:01:46]} 25. Rad1 {[%clk 0:02:07.5]}
25... Bf5 {[%clk 0:01:44.6]} 26. b4 {[%clk 0:02:02.9]} 26... a5 {[%clk
0:01:42.8]} 27. c5 {[%clk 0:02:01.5]} 27... bxc5 {[%clk 0:01:21.3]} 28. bxc5
{[%clk 0:01:59.1]} 28... Bxe4 {[%clk 0:01:02.9]} 29. Qxe4 {[%clk 0:01:59.3]}
29... dxc5 {[%clk 0:00:57.7]} 30. Qxe5 {[%clk 0:01:57.3]} 30... Qxe5 {[%clk
0:00:36.8]} 31. Rxe5 {[%clk 0:01:58.2]} 31... Bg7 {[%clk 0:00:37.3]} 32. Re7
{[%clk 0:01:58.4]} 32... c4 {[%clk 0:00:35.5]} 33. Rc7 {[%clk 0:01:41.9]} 33...
c3 {[%clk 0:00:33.5]} 34. Kf1 {[%clk 0:01:41.1]} 34... Rd7 {[%clk 0:00:29.9]}
35. Rc8 {[%clk 0:01:40.3]} 35... Kf7 {[%clk 0:00:26.4]} 36. Ke2 {[%clk 0:01:39]}
36... g5 {[%clk 0:00:21.4]} 37. hxg5 {[%clk 0:01:35.4]} 37... Ng6 {[%clk
0:00:21.8]} 38. Kd3 {[%clk 0:01:22.6]} 38... Rb7 {[%clk 0:00:05.1]} 39. d6
{[%clk 0:01:19.3]} 39... Rd7 {[%clk 0:00:05.1]} 40. Bd5# {[%clk 0:01:18.8]} 1-0

[Event "*** Titled Tuesday Blitz"]
[Site "Chess.com"]
[Date "2020.04.28"]
[Round "1"]
[White "EddieMarsalla"]
[Black "Joseph_Truelson"]
[Result "1-0"]
[WhiteElo "2562"]
[BlackElo "2223"]
[TimeControl "180+1"]
[EndTime "10:06:24 PDT"]
[Termination "EddieMarsalla won by resignation"]

1. d4 {[%clk 0:03:00.9]} 1... d5 {[%clk 0:02:56.4]} 2. Bg5 {[%clk 0:03:00.6]}
2... c5 {[%clk 0:02:54.5]} 3. e3 {[%clk 0:03:00.4]} 3... Nc6 {[%clk 0:02:53.9]}
4. c3 {[%clk 0:03:00.5]} 4... f6 {[%clk 0:02:52.4]} 5. Bh4 {[%clk 0:02:59.6]}
5... e5 {[%clk 0:02:45.9]} 6. dxe5 {[%clk 0:02:58.9]} 6... Nxe5 {[%clk
0:02:45.6]} 7. Nf3 {[%clk 0:02:58.7]} 7... Nxf3+ {[%clk 0:02:31.8]} 8. Qxf3
{[%clk 0:02:56.3]} 8... Ne7 {[%clk 0:02:25.8]} 9. Nd2 {[%clk 0:02:50.4]} 9...
Be6 {[%clk 0:02:19.2]} 10. Bg3 {[%clk 0:02:38.8]} 10... Qb6 {[%clk 0:02:13.9]}
11. Qd1 {[%clk 0:02:07.7]} 11... Nf5 {[%clk 0:01:56.1]} 12. Bd3 {[%clk
0:02:02.1]} 12... Bd6 {[%clk 0:01:46.1]} 13. Qc2 {[%clk 0:01:38.2]} 13... g6
{[%clk 0:01:13.4]} 14. e4 {[%clk 0:01:12.8]} 14... Nxg3 {[%clk 0:01:06.4]} 15.
hxg3 {[%clk 0:01:13.7]} 15... Kf7 {[%clk 0:01:05.1]} 16. O-O-O {[%clk
0:00:48.1]} 16... Rad8 {[%clk 0:00:44.5]} 17. exd5 {[%clk 0:00:48]} 17... Bxd5
{[%clk 0:00:40.6]} 18. Rxh7+ {[%clk 0:00:48.6]} 18... Rxh7 {[%clk 0:00:19.9]}
19. Bxg6+ {[%clk 0:00:48.6]} 19... Kg7 {[%clk 0:00:19.9]} 20. Bxh7 {[%clk
0:00:49]} 20... Bxg2 {[%clk 0:00:17.2]} 21. Qg6+ {[%clk 0:00:44.2]} 21... Kh8
{[%clk 0:00:17.2]} 22. Qh6 {[%clk 0:00:36.6]} 22... Bf8 {[%clk 0:00:15.5]} 23.
Qh2 {[%clk 0:00:32.3]} 1-0